Cogmind - Beta 9.1 @@@ ROGUE MODE // 2019.10.31 @ 14:47:16 // Halloween2019/Abominations Player: Pimski Result: Destroyed by Lesser Abomination with Mini Grenade Launcher Performance ------------- Evolutions (1) 500 Regions Visited (2) 400 Robots Destroyed (17) 85 Value Destroyed (827) 827 Prototype IDs (1) 20 Alien Tech Used (0) 0 Bonus (0) 0 TOTAL SCORE: 1832 Bonus ------- None Cogmind --------- Core Integrity 0/400 Matter 247/300 Energy 100/100 System Corruption 20% Temperature Cool (0) Location -9/Materials Parts ------- Power (1) Propulsion (2) Utility (4) Weapon (2) Inventory (4) Medium Storage Unit Hacking Suite Improved Assault Rifle Improved Assault Rifle Peak State ------------ Power Ion Engine Propulsion Light Treads Light Treads Utility Large Storage Unit Light Armor Plating Light Armor Plating Hardened Light Armor Plating Weapon Autogun Improved Assault Rifle Inventory Light Treads Light Treads Medium Storage Unit Light Armor Plating Improved Assault Rifle Improved Assault Rifle [Rating: 14] Favorites ----------- Power Ion Engine Engine Ion Engine Propulsion Light Treads Treads Light Treads Leg Aluminum Leg Utility Light Armor Plating Storage Large Storage Unit Protection Light Armor Plating Weapon Autogun Ballistic Gun Autogun Build | -11 -10 -9 ------- Run | Scr Mat Mat Slots Evolved 2 | . . 2 Power . | . . . Propulsion . | . . . Utility 2 | . . 2 Weapon . | . . . Parts Attached 15 | . 6 9 Power . | . . . Engine . | . . . Core . | . . . Reactor . | . . . Propulsion 2 | . 2 . Treads 2 | . 2 . Leg . | . . . Wheel . | . . . Hover . | . . . Flight . | . . . Utility 8 | . 3 5 Device . | . . . Storage 1 | . . 1 Processor . | . . . Hackware . | . . . Protection 7 | . 3 4 Artifact . | . . . Weapon 5 | . 1 4 Energy Gun . | . . . Energy Cannon . | . . . Ballistic Gun 5 | . 1 4 Ballistic Cannon . | . . . Launcher . | . . . Special Weapon . | . . . Impact Weapon . | . . . Slashing Weapon . | . . . Piercing Weapon . | . . . Special Melee Weapon . | . . . Unidentified Prototypes 1 | . . 1 Parts Lost 3 | . . 3 Power . | . . . Propulsion . | . . . Utility 3 | . . 3 Weapon . | . . . Highest Loss Streak 2 | . . 2 Average Slot Usage (%) 91 | . 99 89 Engine 11 | . 14 11 Treads 22 | . 25 22 Storage 6 | . 1 7 Protection 27 | . 26 27 Ballistic Gun 22 | . 28 21 Naked Turns 2 | . . 2 Heaviest Build 38 | 12 16 38 Greatest Support 40 | 20 40 40 Greatest Overweight (x) . | . . . Average Overweight (x) . | . . . Largest Inventory Capacity 10 | 6 6 10 Average Capacity 7 | 6 4 8 Most Carried 10 | 6 6 10 Average Carried 6 | 6 4 7 Final Capacity 6 | 6 4 4 Final Carried 6 | 6 4 4 Class Distribution -------------------- 100% | Mutant Dominant Class ---------------- Mutant | -10/Materials Mutant | -9/Materials Resources | -11 -10 -9 ----------- Run | Scr Mat Mat Matter Collected 1137 | 220 37 880 Remotely . | . . . Salvage Created 700 | 91 86 523 Parts 70 | 2 7 61 Haulers Intercepted . | . . . Recyclers Shooed . | . . . Parts Field Recycled . | . . . Retrieved Matter . | . . . Parts Self-Destructed . | . . . Prevented . | . . . Kills | -11 -10 -9 ------- Run | Scr Mat Mat Combat Hostiles Destroyed 14 | . 3 11 Guns 14 | . 3 11 Classes Destroyed 6 | 1 4 1 Worker 1 | . . 1 Recycler 1 | 1 . . Watcher 1 | . 1 . Swarmer 1 | . 1 . Grunt 1 | . 1 . Abomination 12 | . 1 11 Best Kill Streak 4 | 1 4 2 Combat Bots Only 2 | . 2 2 Max Kills in Single Turn 1 | 1 1 1 Gunslinging . | . . . Exploded . | . . . Melee . | . . . Uniques/NPCs Destroyed . | . . . Combat | -11 -10 -9 -------- Run | Scr Mat Mat Damage Taken 4147 | . 241 3906 Core 455 | . 40 415 Absorbed by Shields . | . . . Core Remaining (%) 92 | 100 84 . Volleys Fired 125 | 5 19 101 Largest 2 | 2 2 2 Hottest 46 | 40 43 46 Shots Fired 248 | 10 38 200 Gun 248 | 10 38 200 Cannon . | . . . Launcher . | . . . Special . | . . . Kinetic 248 | 10 38 200 Thermal . | . . . Explosive . | . . . Electromagnetic . | . . . Robot Hit Streak 47 | 2 9 47 Robot Miss Streak 5 | 2 5 2 Penetration Max . | . . . Secondary Targets 4 | . 1 3 Max Gunslinging Chain 1 | . 1 1 Shots Hit Robots 202 | 6 25 171 Core Hits 49 | 2 9 38 Critical Hits 3 | . . 3 Critical Kills . | . . . Critical Parts Destroyed 3 | . . 3 Melee Attacks . | . . . Impact . | . . . Slashing . | . . . Piercing . | . . . Sneak Attacks . | . . . Combat Hostiles . | . . . Follow-up Attacks . | . . . Damage Inflicted 2989 | 58 361 2570 Guns 2972 | 58 361 2553 Cannons . | . . . Explosions . | . . . Melee . | . . . Ramming 17 | . . 17 Kinetic 2972 | 58 361 2553 Thermal . | . . . Explosive . | . . . Electromagnetic . | . . . Impact . | . . . Slashing . | . . . Piercing . | . . . Highest Corruption 20 | . . 20 Average Corruption 8 | . . 8 Corruption Purged . | . . . Effects 30 | . . 30 Message Errors 4 | . . 4 Matter Fused 3 | . . 3 Heat Flow Errors 1 | . . 1 Parts Rejected 1 | . . 1 Data Loss (minor) 2 | . . 2 Data Loss (major) 1 | . . 1 Misfires 3 | . . 3 Alerts 1 | . . 1 Misdirections 3 | . . 3 Targeting Errors 7 | . . 7 Weapon Failures 4 | . . 4 Overload Shots . | . . . Overflow Damage . | . . . Projectiles . | . . . Explosions . | . . . Melee . | . . . Knockbacks . | . . . Impact . | . . . Kinetic . | . . . Secondary . | . . . Self-Inflicted Damage . | . . . Shots . | . . . Rammed 6 | . . 6 Targets Rammed 6 | . . 6 Kicked . | . . . Crushed . | . . . Highest Temperature 695 | . 76 695 Average Temperature 110 | . 34 121 Received Heat Transfer 828 | . 120 708 Effects 8 | . . 8 Shutdowns 3 | . . 3 Matter Decay 2 | . . 2 Damage (major) 3 | . . 3 Siege Activations . | . . . Robots Corrupted . | . . . Combat Hostiles . | . . . Parts Fried . | . . . Impact Corruptions . | . . . Robots Melted . | . . . Combat Hostiles . | . . . Parts Melted . | . . . Heat Transferred . | . . . Parts Sabotaged . | . . . Parts Stolen . | . . . Parts Stripped . | . . . Power Chain Reactions . | . . . Missiles Intercepted . | . . . Alert | -11 -10 -9 ------- Run | Scr Mat Mat Peak Influence 64 | 5 64 50 Average Influence 32 | 3 42 31 Maximum Alert Level . | . . . Low Security (%) 100 | . . . Level 1 . | . . . Level 2 . | . . . Level 3 . | . . . Level 4 . | . . . Level 5 . | . . . High Security . | . . . Max Security . | . . . Squads Dispatched 15 | . 2 13 Investigation 4 | . 1 3 Extermination . | . . . Reinforcement 2 | . 1 1 Assault 9 | . . 9 Garrison . | . . . Intercept . | . . . Construction Impeded . | . . . Haulers Reinforced . | . . . Stealth | -11 -10 -9 --------- Run | Scr Mat Mat Distress Signals 8 | . 2 6 Communications Jammed . | . . . Distress Signals . | . . . Times Spotted 35 | . 9 26 Peak Tracking Total 8 | . 3 8 Tactical Retreats 9 | . 2 7 Traps | -11 -10 -9 ------- Run | Scr Mat Mat Traps Triggered . | . . . Indirectly . | . . . Trap Hack Attempts . | . . . Triggered . | . . . Disarmed . | . . . Reprogrammed 6 | . 6 . Reused 3 | . 3 . Traps Extracted . | . . . Installed . | . . . Triggered 2 | . 2 . Machines | -11 -10 -9 ---------- Run | Scr Mat Mat Machines Disabled . | . . . Max in Single Turn . | . . . Machines Sabotaged . | . . . Garrisons Compromised . | . . . Overloaded Fab Kills . | . . . Fab Network Shutdowns . | . . . Hacking | -11 -10 -9 --------- Run | Scr Mat Mat Machines Accessed 8 | . 3 5 Terminals 6 | . 2 4 Fabricators . | . . . Repair Stations 1 | . . 1 Recycling Units 1 | . 1 . Scanalyzers . | . . . Garrison Access . | . . . Total Hacks 23 | . 10 13 Successful 11 | . 5 6 Failed 12 | . 5 7 Catastrophic 5 | . 1 4 Database Lockouts . | . . . Manual 17 | . 7 10 Terminals 20 | . 9 11 Fabricators . | . . . Repair Stations 2 | . . 2 Recycling Units 1 | . 1 . Scanalyzers . | . . . Garrison Access . | . . . Terminal Hacks 4 | . 3 1 Level Access Points 1 | . 1 . Locate Traps 1 | . 1 . Reprogram Traps 1 | . 1 . Hauler Manifests 1 | . . 1 Fabricator Hacks . | . . . Repair Station Hacks 2 | . . 2 Scan Component 1 | . . 1 Repair 1 | . . 1 Recycling Unit Hacks 1 | . 1 . Retrieve Components 1 | . 1 . Scanalyzer . | . . . Garrison Access Hacks . | . . . Unauthorized Hacks 11 | . 2 9 Terminals 4 | . 1 3 Botnet 3 | . 1 2 Disrupt 1 | . . 1 Fabricators . | . . . Repair Stations . | . . . Recycling Units . | . . . Scanalyzers . | . . . Garrison Access . | . . . Data Cores Recovered . | . . . Used . | . . . Hacking Detections 8 | . 3 5 Full Trace Events 2 | . . 2 Feedback Events . | . . . Feedback Blocked . | . . . Robot Schematics Acquired . | . . . Robots Built . | . . . Matter . | . . . Time . | . . . Total Robot Build Rating . | . . . Part Schematics Acquired . | . . . Parts Built . | . . . Matter . | . . . Time . | . . . Total Part Build Rating . | . . . Parts Repaired 1 | . . 1 Time 32 | . . 32 Parts Recycled . | . . . Recycled Matter . | . . . Retrieved Matter . | . . . Retrieved Components 1 | . 1 . Parts Scanalyzed . | . . . Part Schematics Acquired . | . . . Parts Damaged . | . . . Bothacking | -11 -10 -9 ------------ Run | Scr Mat Mat Used RIF Installer . | . . . Robots Hacked . | . . . Non-combat . | . . . Combat . | . . . Robot Hacks Applied . | . . . Relay Couplers Released . | . . . Robots Rewired . | . . . Allies Hacked . | . . . Hacks Repelled . | . . . Allies | -11 -10 -9 -------- Run | Scr Mat Mat Total Allies . | . . . Largest Group . | . . . Highest-Rated Group . | . . . Highest-Rated Ally . | . . . Total Orders . | . . . Ally Attacks . | . . . Total Damage . | . . . Kills . | . . . Allies Corrupted . | . . . Allies Melted . | . . . Intel | -11 -10 -9 ------- Run | Scr Mat Mat Robot Analysis Total . | . . . Derelict Logs Recovered . | . . . Drone Launches . | . . . Drone Recoveries . | . . . Exploration | -11 -10 -9 ------------- Run | Scr Mat Mat Turns Passed 1197 | 46 222 929 Spaces Moved 413 | 27 94 292 Core 4 | . . 4 Treads 371 | . 83 288 Legs 38 | 27 11 . Wheels . | . . . Hover . | . . . Flight . | . . . Fastest Speed 50 | 120 120 50 Average Speed 155 | 120 155 158 Slowest Speed 160 | 120 160 160 Overloaded Moves . | . . . Propulsion Burnouts . | . . . Robots Hopped . | . . . Cave-ins Triggered . | . . . Exploration Rate (%) 23 | 3 25 42 Regions Visited 2 Branch Regions . Pre-discovered Areas . | . . . Known Exits Taken 1 | . 1 . Unknown Exits Taken 1 | 1 . . Scrap Searched . | . . . Spaces Dug . | . . . Terrain Destroyed . | . . . Melee . | . . . Projectile . | . . . AOE . | . . . Actions | -11 -10 -9 --------- Run | Scr Mat Mat Total 700 | 31 139 530 Wait 111 | . 8 103 Move 411 | 26 93 292 Hop . | . . . Pick Up 16 | . 4 12 Fast Attach 8 | . 2 6 Attach 5 | . 3 2 Detach 1 | . 1 . Swap 2 | . 1 1 Drop 16 | . 8 8 Fire 125 | 5 19 101 Melee . | . . . Ram . | . . . Kick . | . . . Crush 5 | . . 5 Escape Stasis . | . . . Rewire . | . . . Trap . | . . . Miscellaneous . | . . . Route ------- -11/Scrapyard -10/Materials (discovered 3 exits: *Mat x3) -9/Materials History --------- Turn | Location | Event 15 | -11/Scrapyard | Discovered new exit (range 3) 47 | -11/Scrapyard | Entered Materials 100 | -10/Materials | Identified exit to Materials 269 | -10/Materials | Entered another Materials area 269 | -9/Materials | Evolved 2 slots: Utility x2 304 | -9/Materials | Build established: Mutant 334 | -9/Materials | Repaired Autogun 818 | -9/Materials | Core integrity fell below 50% 827 | -9/Materials | Discovered new exit (range 13) 924 | -9/Materials | System corruption reached 10% 1058 | -9/Materials | Core integrity fell below 20% 1068 | -9/Materials | Discovered new exit (range 12) 1196 | -9/Materials | Released all parts (7) 1198 | -9/Materials | Destroyed by Lesser Abomination with Mini Grenade Launcher Last Messages --------------- 01181_ Hungry Anomaly eats Wheel. 01181_ Lesser Abomination feeds off Hungry Anomaly, taking Med. Matter Pod, Target Analyzer. 01182_ Lesser Abomination spits out Lgt. Ion Engine. 01182_ Lesser Abomination feeds off Hungry Anomaly, taking Lgt. Ion Engine. 01183_ R-06 Scavenger collects Lgt. Ion Engine. 01190_ The unstable cave ceiling collapses. 01190_ System corrupted: Imp. Assault Rifle targeting data glitched. 01192_ System corrupted: FCS attempts to trigger Imp. Assault Rifle. 01192_ System corrupted: Imp. Assault Rifle misfires. 01192_ Unstable Anomaly suddenly flashes brightly. 01196_ Released Autogun. 01196_ Released Lrg. Storage Unit. 01196_ Released Imp. Assault Rifle. 01196_ Released Ion Engine. 01196_ Released Lgt. Treads. 01196_ Released Hrd. Light Armor Plating. 01198_ Lesser Abomination spits out Med. Storage Unit. 01198_ Lesser Abomination absorbs Lrg. Storage Unit. Map ----- +----------------------------------------------------+ | ????# %% #?# ""#####" " ## # " #????? | | ????# %% #?# " # " """# #????? | | ????# % %%= #?###+###"# " #????? | | ????#####+##+##???????? # %""" #????? | | ????????# %#??????????# " "% # #????? | | ????????#%##%#??????????# % ## " ########????? | | ???####?#??# #??????????####### % ####????????? | | ####% ##??# #???????????????# " #???????????? | | # % #??# #???????????????## "% #???????????? | | # % #??# #???????????????## " #???????????? | | " ##?# #???????????????##%" #???????????? | | #?# #???????????????# " #???????????? | | ### #####?#########?## " #???????????? | | % # % ### ####""% #???????????? | | # % %# # " #???????????? | | # # #??????????? | | " % " <% %r % +??????????? | | # # %% A A ### #??????????? | | # # # #####??????????? | | %# ## ######?????????????? | | ############# #### = # # ????????????????? | | ????????# ## %## *== # """????????????????? | | ????????###########!![== #?? ????????????????? | | ?????????????????## = [ + ????????????????? | | ?????????????????# # ?????????????? | | ?????????????????# @ #??#####?????????????? | | ?????????????????#### %#????????????????????? | | ????????????????????# """ % #????????????????????? | | ????????????????????# """ #????????????????????? | | ????????????????????# """ #????????????????????? | | ????????????????????# #????????????????????? | | ????????????????????#########????????????????????? | | ?????????????????????????????????????????????????? | | | | | | | | | | | | | | | | | | | | | | | | | | | | | | | | | | | +----------------------------------------------------+ Best States ------------- Heat Dissipation 28 Energy Generation 10 Energy Capacity 250 Matter Stores 300 Matter Capacity 300 Sight Range 16 Terrain Scan Density 10 Armor Coverage 600 Evasion (%) 40 Recoil Reduction 2 Item Schematics ----------------- None Robot Schematics ------------------ None Fabricated ------------ Nothing Alien Tech Used ----------------- None Achievements -------------- None Challenges ------------ None Game ------ Seed AntimatterInsulationBoosters Manual? 0 Play Time 00:20:25 Cumulative 582.3 hours Start 2019.10.31 @ 14:25:04 End 2019.10.31 @ 14:47:16 Sessions 1 Manual Loads 0 Difficulty Rogue Special Mode Halloween2019/Abominations Game No. 373 Rogue 373 Adventurer 0 Explorer 0 Win Type - Total 97 Types 64/6/7/10/5/1/4 Lore% 96 Gallery% 93 Achievement% 80 Wizard Run 0 Options --------- ASCII 0 Keyboard 0 Movement Numpad Keybinds 0 Fullscreen 2 Font 18/SmallcapsGlow Map View 76x50 Tactical HUD 1 Map Filters NONE Filters NONE Steam 1 RUN: 5c7c63bd-586f-4aa5-9bca-37c7eb7e1e02